fUST/lending_fUST_20240922
["ID","MTS","AMOUNT","RATE_DAILY","PERIOD"]
[338853254,1726943466888,-500.0,0.00017101,2]
[338853255,1726943466898,-960.55,0.00017101,2]
[338853256,1726943466908,-216.637094,0.00017111,2]
[338853257,1726943466917,-216.637094,0.00017111,2]
[338853258,1726943466926,-151.0,0.00017111,2]
[338853259,1726943466936,-151.0,0.00017111,2]
[338853260,1726943466945,-2109.866631,0.00017111,2]
[338853261,1726943466955,-2109.866631,0.00017111,2]
[338853262,1726943466965,-195.106015,0.00017111,2]
[338853263,1726943466975,-511.74,0.00017111,2]
[338853264,1726943466984,-151.0,0.00017111,2]
[338853265,1726943466994,-151.0,0.00017111,2]
[338853266,1726943467004,-151.0,0.00017111,2]
[338853267,1726943467013,-151.0,0.00017111,2]
[338853268,1726943467023,-2114.04343,0.00017111,2]
[338853269,1726943467032,-2114.04343,0.00017111,2]
[338853270,1726943467041,-151.0,0.00017111,2]
[338853271,1726943467050,-493.731065,0.00017111,2]
[338853272,1726943467059,-493.731065,0.00017111,2]
[338853273,1726943467069,-231.711062,0.00017111,2]
[338853274,1726943467078,-231.711062,0.00017111,2]
[338853275,1726943467088,-625.679614,0.00017111,2]
[338853276,1726943467097,-625.679614,0.00017111,2]
[338853277,1726943467106,-205.978112,0.00017232,2]
[338853278,1726943467115,-334.980496,0.00017232,2]
[338853279,1726943467124,-912.675743,0.00017232,2]
[338853280,1726943467133,-1234.629965,0.00017232,2]
[338853281,1726943467143,-3207.43838343,0.00017285,3]
[338853282,1726943467153,-583.63,0.00017362,2]
[338853283,1726943467162,-798.55,0.00017362,2]
[338853284,1726943467172,-546.39,0.00017362,2]
[338853285,1726943467181,-652.39,0.00017362,2]
[338853286,1726943467191,-25013.61,0.00017362,2]
[338853287,1726943467200,-500.0,0.00017362,2]
[338853288,1726943467210,-2359.23,0.00017362,2]
[338853289,1726943467220,-500.0,0.00017371,2]
[338853290,1726943467229,-924.28,0.00017371,2]
[338853291,1726943467239,-500.0,0.00017371,2]
[338853292,1726943467251,-612.82,0.00017371,2]
[338853293,1726943467261,-1462.21,0.00017371,2]
[338853294,1726943467270,-9178.76,0.00017371,2]
[338853295,1726943467280,-500.0,0.00017372,2]
[338853296,1726943467290,-873.96,0.00017372,2]
[338853297,1726943467299,-500.0,0.00017372,2]
[338853298,1726943467309,-662.54,0.00017372,2]
[338853299,1726943467321,-1332.43,0.00017372,2]
[338853300,1726943467332,-500.0,0.00017372,2]
[338853301,1726943467342,-1059.04,0.00017372,2]
[338853302,1726943467354,-678.09,0.00017372,2]
[338853303,1726943467364,-500.0,0.00017372,2]
[338853304,1726943467374,-500.0,0.00017372,2]
[338853305,1726943467383,-500.0,0.00017372,2]
[338853306,1726943467393,-643.77,0.00017373,2]
[338853307,1726943467403,-200.0,0.00017373,2]
[338853308,1726943467413,-455.00433122,0.00017373,2]
[338853309,1726943467422,-692.67,0.00017373,2]
[338853310,1726943467433,-500.0,0.00017373,2]
[338853311,1726943467443,-262.81972948,0.00017373,2]
[338853312,1726943467454,-500.0,0.00017373,2]
[338853313,1726943467463,-454.51217959,0.00017373,2]
[338853314,1726943467473,-500.0,0.00017373,2]
[338853315,1726943467482,-500.0,0.00017373,2]
[338853316,1726943467491,-602.5,0.00017373,2]
[338853317,1726943467501,-682.43,0.00017373,2]
[338853318,1726943467510,-500.0,0.00017373,2]
[338853319,1726943467520,-500.0,0.00017373,2]
[338853320,1726943467529,-705.66,0.00017373,2]
[338853321,1726943467538,-500.0,0.00017374,2]
[338853322,1726943467548,-500.0,0.00017374,2]
[338853323,1726943467557,-693.2,0.00017374,2]
[338853324,1726943467567,-389.35667443,0.00017375,2]
[338853325,1726943467576,-159.79670019,0.00017375,2]
[338853326,1726943467586,-1081.9,0.00017375,2]
[338853327,1726943467595,-528.72,0.00017375,2]
[338853328,1726943467605,-500.0,0.00017375,2]
[338853329,1726943467617,-960.55,0.00017375,2]
[338853330,1726943467629,-151.0,0.00017376,2]
[338853331,1726943467639,-511.74,0.00017385,2]
[338853332,1726943467649,-796.7,0.00017409,2]
[338853333,1726943467658,-209.36281,0.0001744,2]
[338853334,1726943467668,-169.231416,0.0001744,2]
[338853335,1726943467677,-174.890975,0.0001744,2]
[338853336,1726943467686,-174.370787,0.0001744,2]
[338853337,1726943467695,-205.978112,0.0001744,2]
[338853338,1726943467704,-334.980496,0.0001744,2]
[338853339,1726943467713,-912.675743,0.0001744,2]
[338853340,1726943467722,-1234.629965,0.0001744,2]
[338853341,1726943467732,-677.2478024,0.0001746,2]
[338853342,1726943467741,-1000.0,0.000175,2]
[338853343,1726943467751,-151.0,0.00017516,2]
[338853344,1726943467761,-2500.0,0.00017516,2]
[338853345,1726943467770,-2500.0,0.00017525,2]
[338853346,1726943467779,-2500.0,0.00017534,2]
[338853347,1726943467789,-2500.0,0.00017534,2]
[338853348,1726943467798,-2317.7779218,0.00017534,2]
[338853349,1726943467808,-2500.0,0.0001755,2]
[338853350,1726943467818,-151.0,0.0001755,2]
[338853351,1726943467827,-578.62361,0.0001755,2]
[338853352,1726943467837,-295.550393,0.0001755,2]
[338853353,1726943467846,-295.550393,0.0001755,2]
[338853354,1726943467856,-151.0,0.0001755,2]
[338853355,1726943467865,-151.0,0.0001755,2]
[338853356,1726943467875,-2500.0,0.00017558,2]
[338853357,1726943467885,-151.0,0.00017566,2]
[338853358,1726943467895,-209.900189,0.00017566,2]
[338853359,1726943467905,-151.0,0.00017566,2]
[338853360,1726943467914,-151.0,0.00017566,2]
[338853361,1726943467924,-2211.92803,0.00017566,2]
[338853362,1726943467934,-2211.92803,0.00017566,2]
[338853363,1726943467943,-806.537498,0.00017566,2]
[338853364,1726943467954,-237.54089198,0.00017566,2]
[338853365,1726943550711,166.666666,0.00011781,2]
[338853367,1726943612349,507.9358518,0.00013985,2]
[338853369,1726943838317,444.44387036,0.00013974,2]
[338853372,1726943880681,14691.7357751,0.00013076,2]
[338853380,1726944075543,150.0,0.00014014,2]
[338853382,1726944131614,150.0,0.00014014,2]
[338853385,1726944189091,200.74,8.219e-05,7]
[338853386,1726944206888,-300.0,0.00014062,2]
[338853387,1726944206913,-300.0,0.00014062,2]
[338853388,1726944206938,-6400.0,0.00014062,2]
[338853398,1726944283509,388.88838653,0.00013963,2]
[338853400,1726944427520,166.666666,0.00011781,2]
[338853405,1726944488836,340.27733824,0.00013961,2]
[338853406,1726944545012,1090.90957906,0.00013974,2]
[338853474,1726944638469,-300.0,0.00014051,2]
[338853476,1726944638479,-300.0,0.00014051,2]
[338853478,1726944638488,-500.0,0.00014052,2]
[338853480,1726944638498,-1748.01935708,0.00014052,2]
[338853483,1726944638518,-80249.24198212,0.00014052,2]
[338853485,1726944638528,-245.92528213,0.00014052,2]
[338853487,1726944638537,-245991.784018,0.00014054,2]
[338853489,1726944638548,-737.77584639,0.00014054,2]
[338853491,1726944638558,-81997.2613392,0.00014054,2]
[338853493,1726944638569,-737.77584639,0.00014054,2]
[338853494,1726944638578,-213.95524337,0.00014059,2]
[338853495,1726944638588,-500.0,0.00014059,2]
[338853496,1726944638598,-500.0,0.00014059,2]
[338853497,1726944638608,-500.0,0.00014059,2]
[338853498,1726944638618,-368.14173596,0.00014059,2]
[338853499,1726944638628,-500.0,0.00014059,2]
[338853500,1726944638638,-274.44779589,0.00014059,2]
[338853501,1726944638648,-500.0,0.00014059,2]
[338853502,1726944638658,-500.0,0.00014059,2]
[338853503,1726944638668,-500.0,0.00014059,2]
[338853504,1726944638677,-500.0,0.00014059,2]
[338853505,1726944638687,-500.0,0.00014059,2]
[338853506,1726944638696,-500.0,0.00014059,2]
[338853507,1726944638706,-500.0,0.00014059,2]
[338853508,1726944638715,-500.0,0.00014059,2]
[338853509,1726944638726,-500.0,0.00014059,2]
[338853510,1726944638735,-500.0,0.00014059,2]
[338853511,1726944638744,-500.0,0.00014059,2]
[338853512,1726944638757,-500.0,0.00014059,2]
[338853513,1726944638766,-500.0,0.00014059,2]
[338853514,1726944638776,-500.0,0.00014059,2]
[338853515,1726944638785,-500.0,0.00014059,2]
[338853516,1726944638798,-500.0,0.00014059,2]
[338853517,1726944638807,-500.0,0.00014059,2]
[338853518,1726944638819,-500.0,0.00014059,2]
[338853519,1726944638829,-500.0,0.00014059,2]
[338853520,1726944638839,-500.0,0.00014059,2]
[338853521,1726944638851,-366.77917537,0.00014059,2]
[338853522,1726944638860,-500.0,0.0001406,2]
[338853523,1726944638870,-568.45,0.0001406,2]
[338853524,1726944638880,-247.68,0.0001406,2]
[338853525,1726944638889,-491.12,0.0001406,2]
[338853526,1726944638899,-500.0,0.0001406,2]
[338853527,1726944638909,-500.0,0.0001406,2]
[338853528,1726944638919,-500.0,0.0001406,2]
[338853529,1726944638929,-500.0,0.0001406,2]
[338853530,1726944638939,-500.0,0.0001406,2]
[338853531,1726944638950,-500.0,0.0001406,2]
[338853532,1726944638959,-500.0,0.0001406,2]
[338853533,1726944638969,-500.0,0.0001406,2]
[338853534,1726944638978,-500.0,0.0001406,2]
[338853535,1726944638988,-500.0,0.0001406,2]
[338853536,1726944638997,-500.0,0.0001406,2]
[338853537,1726944639007,-3310.21,0.0001406,2]
[338853538,1726944639017,-500.0,0.0001406,2]
[338853539,1726944639028,-1788.69,0.0001406,2]
[338853540,1726944639037,-500.0,0.0001406,2]
[338853541,1726944639047,-500.0,0.0001406,2]
[338853542,1726944639057,-500.0,0.0001406,2]
[338853543,1726944639067,-500.0,0.0001406,2]
[338853544,1726944639077,-500.0,0.0001406,2]
[338853545,1726944639086,-500.0,0.00014061,2]
[338853546,1726944639096,-500.0,0.00014061,2]
[338853547,1726944639107,-500.0,0.00014061,2]
[338853548,1726944639118,-500.0,0.00014061,2]
[338853549,1726944639129,-500.0,0.00014061,2]
[338853550,1726944639141,-500.0,0.00014061,2]
[338853551,1726944639153,-500.0,0.00014061,2]
[338853552,1726944639163,-500.0,0.00014061,2]
[338853553,1726944639172,-500.0,0.00014061,2]
[338853554,1726944639182,-500.0,0.00014061,2]
[338853555,1726944639192,-500.0,0.00014061,2]
[338853556,1726944639202,-500.0,0.00014061,2]
[338853557,1726944639211,-621.6,0.00014061,2]
[338853558,1726944639220,-500.0,0.00014061,2]
[338853559,1726944639230,-277.43,0.00014061,2]
[338853560,1726944639240,-500.0,0.00014061,2]
[338853561,1726944639252,-500.0,0.00014061,2]
[338853562,1726944639262,-500.0,0.00014061,2]
[338853563,1726944639272,-500.0,0.00014061,2]
[338853564,1726944639282,-500.0,0.00014061,2]
[338853565,1726944639292,-500.0,0.00014061,2]
[338853566,1726944639302,-500.0,0.00014061,2]
[338853567,1726944639311,-283.35,0.00014061,2]
[338853568,1726944639321,-500.0,0.00014061,2]
[338853569,1726944639331,-500.0,0.00014061,2]
[338853570,1726944639341,-501.70910792,0.00014061,2]
[338853571,1726944639350,-500.0,0.00014061,2]
[338853572,1726944639360,-500.0,0.00014061,2]
[338853573,1726944639370,-500.0,0.00014061,2]
[338853574,1726944639380,-500.0,0.00014061,2]
[338853575,1726944639389,-500.0,0.00014061,2]
[338853576,1726944639399,-500.0,0.00014061,2]
[338853577,1726944639409,-500.0,0.00014061,2]
[338853578,1726944639418,-500.0,0.00014061,2]
[338853579,1726944639428,-500.0,0.00014061,2]
[338853580,1726944639437,-500.0,0.00014061,2]
[338853581,1726944639447,-500.0,0.00014061,2]
[338853582,1726944639456,-500.0,0.00014061,2]
[338853583,1726944639466,-1044.43,0.00014061,2]
[338853584,1726944639692,-637.64,0.00014061,2]
[338853585,1726944639702,-500.0,0.00014061,2]
[338853586,1726944639711,-500.0,0.00014061,2]
[338853587,1726944639721,-500.0,0.00014061,2]
[338853588,1726944639731,-500.0,0.00014061,2]
[338853589,1726944639740,-500.0,0.00014061,2]
[338853590,1726944639750,-500.0,0.00014061,2]
[338853591,1726944639759,-500.0,0.00014061,2]
[338853592,1726944639769,-500.0,0.00014061,2]
[338853593,1726944639778,-500.0,0.00014061,2]
[338853594,1726944639787,-500.0,0.00014061,2]
[338853595,1726944639797,-500.0,0.00014061,2]
[338853596,1726944639806,-500.0,0.00014061,2]
[338853597,1726944639815,-500.0,0.00014061,2]
[338853598,1726944639826,-500.0,0.00014061,2]
[338853599,1726944639835,-500.0,0.00014061,2]
[338853600,1726944639845,-505.22680742,0.00014061,2]
[338853601,1726944639854,-500.0,0.00014061,2]
[338853602,1726944639865,-500.0,0.00014061,2]
[338853603,1726944639875,-500.0,0.00014061,2]
[338853604,1726944639884,-500.0,0.00014061,2]
[338853605,1726944639894,-500.0,0.00014061,2]
[338853607,1726944639904,-503.057294,0.00014061,2]
[338853608,1726944639913,-500.0,0.00014061,2]
[338853609,1726944639923,-500.0,0.00014061,2]
[338853610,1726944639933,-500.0,0.00014061,2]
[338853612,1726944639942,-500.0,0.00014061,2]
[338853613,1726944639952,-6582.0,0.00014061,2]
[338853614,1726944639961,-500.0,0.00014061,2]
[338853615,1726944639971,-500.0,0.00014061,2]
[338853616,1726944639980,-500.0,0.00014061,2]
[338853618,1726944639990,-500.0,0.00014061,2]
[338853619,1726944640000,-500.0,0.00014061,2]
[338853620,1726944640010,-500.0,0.00014061,2]
[338853621,1726944640020,-500.0,0.00014061,2]
[338853623,1726944640029,-245.92528213,0.00014062,2]
[338853625,1726944640039,-500.0,0.00014063,2]
[338853626,1726944640048,-500.0,0.00014063,2]
[338853627,1726944640058,-500.0,0.00014063,2]
[338853628,1726944640075,-500.0,0.00014063,2]
[338853629,1726944640088,-500.0,0.00014063,2]
[338853630,1726944640098,-501.80504278,0.00014063,2]
[338853632,1726944640108,-500.0,0.00014063,2]
[338853633,1726944640120,-314.57538235,0.00014063,2]
[338853634,1726944640130,-500.0,0.00014063,2]
[338853635,1726944640140,-500.0,0.00014063,2]
[338853636,1726944640150,-500.0,0.00014063,2]
[338853637,1726944640159,-500.0,0.00014063,2]
[338853638,1726944640170,-500.0,0.00014063,2]
[338853639,1726944640180,-500.0,0.00014063,2]
[338853640,1726944640190,-500.0,0.00014063,2]
[338853641,1726944640200,-519.09568613,0.00014063,2]
[338853642,1726944640209,-500.0,0.00014063,2]
[338853643,1726944640219,-500.0,0.00014063,2]
[338853644,1726944640229,-500.0,0.00014063,2]
[338853645,1726944640239,-500.0,0.00014063,2]
[338853646,1726944640250,-712.63,0.00014063,2]
[338853647,1726944640260,-500.0,0.00014063,2]
[338853648,1726944640269,-500.0,0.00014063,2]
[338853649,1726944640279,-500.0,0.00014063,2]
[338853651,1726944640289,-500.0,0.00014063,2]
[338853653,1726944640300,-500.0,0.00014063,2]
[338853655,1726944640311,-500.0,0.00014063,2]
[338853656,1726944640322,-500.0,0.00014063,2]
[338853658,1726944640333,-500.0,0.00014063,2]
[338853660,1726944640344,-500.0,0.00014063,2]
[338853661,1726944640355,-500.0,0.00014063,2]
[338853662,1726944640367,-500.0,0.00014063,2]
[338853663,1726944640376,-643.44,0.00014063,2]
[338853664,1726944640386,-500.0,0.00014063,2]
[338853665,1726944640395,-500.0,0.00014063,2]
[338853666,1726944640405,-500.0,0.00014063,2]
[338853667,1726944640417,-500.0,0.00014063,2]
[338853668,1726944640426,-500.0,0.00014063,2]
[338853669,1726944640436,-447.04252525,0.00014063,2]
[338853670,1726944640446,-500.0,0.00014063,2]
[338853671,1726944640456,-500.0,0.00014063,2]
[338853672,1726944640465,-500.0,0.00014063,2]
[338853673,1726944640475,-500.0,0.00014063,2]
[338853674,1726944640484,-500.0,0.00014063,2]
[338853675,1726944640494,-491.85056426,0.00014064,2]
[338853676,1726944640504,-500.0,0.00014072,2]
[338853677,1726944640515,-509.81,0.00014072,2]
[338853678,1726944640526,-500.0,0.00014072,2]
[338853679,1726944640536,-500.0,0.00014072,2]
[338853680,1726944640546,-500.0,0.00014072,2]
[338853681,1726944640557,-500.0,0.00014072,2]
[338853682,1726944640567,-832.77,0.00014072,2]
[338853683,1726944640576,-500.0,0.00014072,2]
[338853684,1726944640587,-500.0,0.00014072,2]
[338853685,1726944640596,-500.0,0.00014072,2]
[338853686,1726944640606,-500.0,0.00014072,2]
[338853687,1726944640618,-500.0,0.00014072,2]
[338853688,1726944640629,-500.0,0.00014072,2]
[338853689,1726944640640,-709.6,0.00014072,2]
[338853690,1726944640651,-500.0,0.00014072,2]
[338853691,1726944640662,-500.0,0.00014072,2]
[338853692,1726944640671,-500.0,0.00014072,2]
[338853693,1726944640684,-502.94436042,0.00014072,2]
[338853694,1726944640694,-599.25245421,0.00014072,2]
[338853695,1726944640703,-500.0,0.00014072,2]
[338853696,1726944640713,-500.0,0.00014072,2]
[338853697,1726944640723,-500.0,0.00014072,2]
[338853698,1726944640732,-500.0,0.00014072,2]
[338853699,1726944640742,-500.0,0.00014072,2]
[338853700,1726944640752,-500.0,0.00014072,2]
[338853701,1726944640762,-500.0,0.00014072,2]
[338853702,1726944640772,-500.0,0.00014072,2]
[338853703,1726944640781,-500.0,0.00014072,2]
[338853704,1726944640790,-500.0,0.00014072,2]
[338853705,1726944640801,-500.0,0.00014072,2]
[338853706,1726944640811,-500.0,0.00014072,2]
[338853707,1726944640824,-500.0,0.00014072,2]
[338853708,1726944640835,-500.0,0.00014072,2]
[338853709,1726944640847,-500.0,0.00014072,2]
[338853710,1726944640858,-500.0,0.00014072,2]
[338853711,1726944640869,-500.0,0.00014072,2]
[338853712,1726944640878,-500.0,0.00014072,2]
[338853713,1726944640887,-500.0,0.00014072,2]
[338853714,1726944640897,-500.0,0.00014072,2]
[338853715,1726944640907,-500.0,0.00014072,2]
[338853716,1726944640916,-500.0,0.00014072,2]
[338853717,1726944640926,-500.0,0.00014072,2]
[338853718,1726944640937,-500.0,0.00014072,2]
[338853719,1726944640948,-506.36725357,0.00014072,2]
[338853720,1726944640959,-500.0,0.00014072,2]
[338853721,1726944640968,-500.0,0.00014072,2]
[338853722,1726944640978,-500.0,0.00014072,2]
[338853723,1726944640987,-500.0,0.00014072,2]
[338853724,1726944640997,-500.0,0.00014072,2]
[338853725,1726944641008,-500.0,0.00014072,2]
[338853726,1726944641020,-601.82720782,0.00014072,2]
[338853727,1726944641031,-500.0,0.00014072,2]
[338853728,1726944641042,-610.16,0.00014072,2]
[338853729,1726944641052,-500.0,0.00014072,2]
[338853730,1726944641061,-500.0,0.00014072,2]
[338853731,1726944641071,-500.0,0.00014072,2]
[338853732,1726944641081,-500.0,0.00014072,2]
[338853733,1726944641090,-500.0,0.00014072,2]
[338853734,1726944641100,-500.0,0.00014072,2]
[338853735,1726944641110,-500.0,0.00014072,2]
[338853736,1726944641124,-500.0,0.00014072,2]
[338853737,1726944641135,-500.0,0.00014072,2]
[338853738,1726944641145,-500.0,0.00014072,2]
[338853739,1726944641155,-500.0,0.00014072,2]
[338853740,1726944641165,-500.0,0.00014072,2]
[338853741,1726944641174,-500.0,0.00014072,2]
[338853742,1726944641184,-200.0,0.00014072,2]
[338853743,1726944641194,-500.0,0.00014072,2]
[338853744,1726944641204,-500.0,0.00014072,2]
[338853745,1726944641215,-550.8,0.00014072,2]
[338853746,1726944641226,-500.0,0.00014074,2]
[338853747,1726944641238,-500.0,0.00014074,2]
[338853748,1726944641249,-500.0,0.00014074,2]
[338853749,1726944641261,-500.0,0.00014074,2]
[338853750,1726944641271,-500.0,0.00014074,2]
[338853751,1726944641282,-500.0,0.00014074,2]
[338853752,1726944641293,-500.0,0.00014074,2]
[338853753,1726944641302,-500.0,0.00014074,2]
[338853754,1726944641313,-500.0,0.00014074,2]
[338853755,1726944641324,-500.0,0.00014074,2]
[338853756,1726944641336,-500.0,0.00014074,2]
[338853757,1726944641348,-500.0,0.00014074,2]
[338853758,1726944641357,-500.0,0.00014074,2]
[338853759,1726944641370,-500.0,0.00014074,2]
[338853760,1726944641380,-352.18168405,0.00014074,2]
[338853761,1726944641391,-500.0,0.00014074,2]
[338853762,1726944641400,-500.0,0.00014074,2]
[338853763,1726944641413,-500.0,0.00014074,2]
[338853764,1726944641424,-500.0,0.00014074,2]
[338853765,1726944641435,-500.0,0.00014074,2]
[338853766,1726944641446,-500.0,0.00014074,2]
[338853767,1726944641458,-529.32581531,0.00014074,2]
[338853768,1726944641467,-500.0,0.00014074,2]
[338853769,1726944641476,-500.0,0.00014074,2]
[338853770,1726944641486,-500.0,0.00014074,2]
[338853771,1726944641496,-500.0,0.00014074,2]
[338853772,1726944641506,-500.0,0.00014074,2]
[338853773,1726944641517,-281.78221342,0.00014074,2]
[338853774,1726944641526,-500.0,0.00014074,2]
[338853775,1726944641538,-500.0,0.00014074,2]
[338853776,1726944641550,-500.0,0.00014074,2]
[338853777,1726944641561,-446.70538196,0.00014074,2]
[338853778,1726944641573,-500.0,0.00014074,2]
[338853779,1726944641584,-500.0,0.00014074,2]
[338853780,1726944641594,-500.0,0.00014074,2]
[338853781,1726944641604,-500.0,0.00014074,2]
[338853782,1726944641616,-500.0,0.00014074,2]
[338853783,1726944641627,-500.0,0.00014074,2]
[338853784,1726944641638,-500.0,0.00014074,2]
[338853785,1726944641648,-500.0,0.00014074,2]
[338853786,1726944641658,-500.0,0.00014074,2]
[338853787,1726944641669,-500.0,0.00014074,2]
[338853788,1726944641679,-500.0,0.00014074,2]
[338853789,1726944641690,-500.0,0.00014074,2]
[338853790,1726944641701,-500.0,0.00014074,2]
[338853791,1726944641712,-500.0,0.00014074,2]
[338853792,1726944641723,-500.0,0.00014074,2]
[338853793,1726944641733,-500.0,0.00014074,2]
[338853794,1726944641744,-500.0,0.00014074,2]
[338853795,1726944641755,-500.0,0.00014074,2]
[338853796,1726944641767,-500.0,0.00014074,2]
[338853797,1726944641779,-500.0,0.00014074,2]
[338853798,1726944641788,-500.0,0.00014074,2]
[338853799,1726944641798,-500.0,0.00014074,2]
[338853800,1726944641809,-500.0,0.00014074,2]
[338853801,1726944641820,-500.0,0.00014074,2]
[338853802,1726944641830,-500.0,0.00014074,2]
[338853803,1726944641839,-201.9909663,0.00014074,2]
[338853804,1726944641848,-500.0,0.00014074,2]
[338853805,1726944641858,-500.0,0.00014074,2]
[338853806,1726944641869,-500.0,0.00014074,2]
[338853807,1726944641880,-500.0,0.00014074,2]
[338853808,1726944641891,-500.0,0.00014074,2]
[338853809,1726944641905,-243.90038614,0.00014074,2]
[338853810,1726944641916,-500.0,0.00014074,2]
[338853811,1726944641927,-500.0,0.00014074,2]
[338853812,1726944641937,-500.0,0.00014074,2]
[338853813,1726944641949,-554.38,0.00014074,2]
[338853814,1726944641960,-450.93129213,0.00014074,2]
[338853815,1726944641969,-500.0,0.00014074,2]
[338853816,1726944641979,-500.0,0.00014074,2]
[338853817,1726944641989,-500.0,0.00014074,2]
[338853818,1726944641999,-500.0,0.00014074,2]
[338853819,1726944642010,-500.0,0.00014074,2]
[338853820,1726944642021,-500.0,0.00014074,2]
[338853821,1726944642032,-500.0,0.00014074,2]
[338853822,1726944642042,-503.3653671,0.00014074,2]
[338853823,1726944642053,-500.0,0.00014074,2]
[338853824,1726944642063,-500.0,0.00014074,2]
[338853825,1726944642072,-500.0,0.00014074,2]
[338853826,1726944642082,-500.0,0.00014074,2]
[338853827,1726944642092,-500.0,0.00014074,2]
[338853828,1726944642102,-500.0,0.00014074,2]
[338853829,1726944642111,-500.0,0.00014074,2]
[338853830,1726944642121,-500.0,0.00014074,2]
[338853831,1726944642130,-500.0,0.00014074,2]
[338853832,1726944642139,-500.0,0.00014074,2]
[338853833,1726944642149,-502.32683373,0.00014074,2]
[338853834,1726944642159,-500.0,0.00014074,2]
[338853835,1726944642168,-500.0,0.00014074,2]
[338853836,1726944642177,-500.0,0.00014074,2]
[338853837,1726944642186,-500.0,0.00014074,2]
[338853838,1726944642195,-500.0,0.00014074,2]
[338853839,1726944642206,-500.0,0.00014074,2]
[338853840,1726944642215,-500.0,0.00014074,2]
[338853841,1726944642224,-500.0,0.00014074,2]
[338853842,1726944642234,-500.0,0.00014074,2]
[338853843,1726944642244,-500.0,0.00014074,2]
[338853844,1726944642253,-254.83491519,0.00014074,2]
[338853845,1726944642263,-500.0,0.00014074,2]
[338853846,1726944642273,-500.0,0.00014074,2]
[338853847,1726944642283,-500.0,0.00014074,2]
[338853848,1726944642292,-501.2773307,0.00014074,2]
[338853849,1726944642302,-316.23468426,0.00014074,2]
[338853850,1726944642312,-500.0,0.00014074,2]
[338853851,1726944642322,-500.0,0.00014074,2]
[338853852,1726944642332,-500.0,0.00014074,2]
[338853853,1726944642341,-550.02827152,0.00014074,2]
[338853854,1726944642351,-500.0,0.00014074,2]
[338853855,1726944642361,-500.0,0.00014074,2]
[338853856,1726944642372,-500.0,0.00014074,2]
[338853857,1726944642382,-197.15480101,0.00014074,2]
[338853858,1726944642391,-500.0,0.00014074,2]
[338853859,1726944642400,-500.0,0.00014074,2]
[338853860,1726944642410,-500.0,0.00014074,2]
[338853861,1726944642420,-324.96272311,0.00014074,2]
[338853862,1726944642429,-500.0,0.00014074,2]
[338853863,1726944642439,-500.0,0.00014074,2]
[338853864,1726944642448,-500.0,0.00014074,2]
[338853865,1726944642457,-500.0,0.00014074,2]
[338853866,1726944642467,-500.0,0.00014074,2]
[338853867,1726944642476,-500.70306728,0.00014074,2]
[338853868,1726944642486,-500.0,0.00014074,2]
[338853869,1726944642495,-500.0,0.00014074,2]